[Event "January 2 Early 2024"]
[Site "https://www.chess.com"]
[Date "2024.01.02"]
[Round "2"]
[White "Nord, Alexander"]
[Black "Palczert, Matyas"]
[Result "0-1"]
[Board "163"]
[TimeControl "180+1"]
[WhiteFideId "1738135"]
[BlackFideId "784958"]
[WhiteElo "2341"]
[BlackElo "2586"]
[WhiteTeam "SWE"]
[BlackTeam "HUN"]
[WhiteClock "0:00:00"]
[BlackClock "0:01:13"]

1. d4 {[%clk 0:03:00]}  Nf6 {[%clk 0:02:53]} 2. c4 {[%clk 0:03:00]}  c5 {[%clk 0:02:52]} 3. d5 {[%clk 0:02:59]}  b5 {[%clk 0:02:52]} 4. cxb5 {[%clk 0:02:56]}  a6 {[%clk 0:02:53]} 5. b6 {[%clk 0:02:54]}  Qxb6 {[%clk 0:02:52]} 6. Nc3 {[%clk 0:02:54]}  d6 {[%clk 0:02:51]} 7. e4 {[%clk 0:02:48]}  g6 {[%clk 0:02:52]} 8. Bc4 {[%clk 0:02:41]}  Bg7 {[%clk 0:02:52]} 9. Nge2 {[%clk 0:02:39]}  O-O {[%clk 0:02:52]} 10. O-O {[%clk 0:02:39]}  Nbd7 {[%clk 0:02:52]} 11. h3 {[%clk 0:02:31]}  Ne5 {[%clk 0:02:48]} 12. Bb3 {[%clk 0:02:05]}  c4 {[%clk 0:02:49]} 13. Bc2 {[%clk 0:02:05]}  a5 {[%clk 0:02:49]} 14. Rb1 {[%clk 0:02:01]}  Ba6 {[%clk 0:02:48]} 15. Be3 {[%clk 0:02:00]}  Qc7 {[%clk 0:02:48]} 16. Nd4 {[%clk 0:01:39]}  Nd3 {[%clk 0:02:33]} 17. Nc6 {[%clk 0:01:37]}  e6 {[%clk 0:02:18]} 18. Qd2 {[%clk 0:00:54]}  exd5 {[%clk 0:02:17]} 19. exd5 {[%clk 0:00:53]}  Rfe8 {[%clk 0:02:17]} 20. Bd4 {[%clk 0:00:23]}  Nxd5 {[%clk 0:02:06]} 21. Bxg7 {[%clk 0:00:20]}  Qxc6 {[%clk 0:02:01]} 22. Nxd5 {[%clk 0:00:17]}  Qxd5 {[%clk 0:02:01]} 23. Bc3 {[%clk 0:00:17]}  Bb7 {[%clk 0:01:50]} 24. f3 {[%clk 0:00:14]}  Qc5+ {[%clk 0:01:47]} 25. Kh1 {[%clk 0:00:14]}  Qe3 {[%clk 0:01:43]} 26. Rbd1 {[%clk 0:00:07]}  d5 {[%clk 0:01:34]} 27. Bxd3 {[%clk 0:00:06]}  cxd3 {[%clk 0:01:34]} 28. Qxd3 {[%clk 0:00:06]}  Qxd3 {[%clk 0:01:34]} 29. Rxd3 {[%clk 0:00:06]}  Ba6 {[%clk 0:01:35]} 30. Rfd1 {[%clk 0:00:06]}  Bxd3 {[%clk 0:01:35]} 31. Rxd3 {[%clk 0:00:07]}  Red8 {[%clk 0:01:25]} 32. Rd4 {[%clk 0:00:07]}  a4 {[%clk 0:01:24]} 33. a3 {[%clk 0:00:07]}  h5 {[%clk 0:01:20]} 34. g4 {[%clk 0:00:07]}  hxg4 {[%clk 0:01:18]} 35. hxg4 {[%clk 0:00:08]}  Kf8 {[%clk 0:01:19]} 36. Kg2 {[%clk 0:00:08]}  Ke7 {[%clk 0:01:18]} 37. Kg3 {[%clk 0:00:09]}  Ke6 {[%clk 0:01:18]} 38. Rf4 {[%clk 0:00:07]}  f5 {[%clk 0:01:17]} 39. gxf5+ {[%clk 0:00:05]}  gxf5 {[%clk 0:01:18]} 40. Rh4 {[%clk 0:00:05]}  Rg8+ {[%clk 0:01:18]} 41. Kf4 {[%clk 0:00:05]}  Rg6 {[%clk 0:01:17]} 42. Rh7 {[%clk 0:00:05]}  Rc8 {[%clk 0:01:16]} 43. Rb7 {[%clk 0:00:05]}  Rc4+ {[%clk 0:01:16]} 44. Ke3 {[%clk 0:00:04]}  f4+ {[%clk 0:01:16]} 45. Kd3 {[%clk 0:00:04]}  Rg3 {[%clk 0:01:15]} 46. Ke2 {[%clk 0:00:03]}  Rg2+ {[%clk 0:01:14]} 47. Kd3 {[%clk 0:00:03]}  Rf2 {[%clk 0:01:13]} 48. Rb6+ {[%clk 0:00:00]}  Kd7 {[%clk 0:01:13]} 0-1

[Event "January 2 Early 2024"]
[Site "https://www.chess.com"]
[Date "2024.01.02"]
[Round "2"]
[White "Bueno, Alfeu Junior Varela"]
[Black "Petre, Nad-Titus"]
[Result "1-0"]
[Board "164"]
[TimeControl "180+1"]
[WhiteFideId "2108879"]
[BlackFideId "1204165"]
[WhiteElo "2336"]
[BlackElo "2573"]
[WhiteTeam "BRA"]
[BlackTeam "ROU"]
[WhiteClock "0:00:04"]
[BlackClock "0:00:00"]

1. e4 {[%clk 0:02:57]}  c5 {[%clk 0:02:59]} 2. Nc3 {[%clk 0:02:52]}  Nc6 {[%clk 0:02:58]} 3. f4 {[%clk 0:02:51]}  g6 {[%clk 0:02:54]} 4. Nf3 {[%clk 0:02:51]}  Bg7 {[%clk 0:02:53]} 5. Bb5 {[%clk 0:02:52]}  Nd4 {[%clk 0:02:52]} 6. O-O {[%clk 0:02:53]}  Nh6 {[%clk 0:02:52]} 7. d3 {[%clk 0:02:48]}  Nxb5 {[%clk 0:02:49]} 8. Nxb5 {[%clk 0:02:48]}  f5 {[%clk 0:02:49]} 9. Ng5 {[%clk 0:02:38]}  O-O {[%clk 0:02:42]} 10. Qe1 {[%clk 0:02:36]}  a6 {[%clk 0:02:33]} 11. Nc3 {[%clk 0:02:36]}  e6 {[%clk 0:02:29]} 12. Qh4 {[%clk 0:02:35]}  b5 {[%clk 0:02:14]} 13. Be3 {[%clk 0:02:24]}  d6 {[%clk 0:01:52]} 14. Rae1 {[%clk 0:02:19]}  Ra7 {[%clk 0:01:42]} 15. Re2 {[%clk 0:01:57]}  Re7 {[%clk 0:01:23]} 16. Rfe1 {[%clk 0:01:49]}  Rfe8 {[%clk 0:01:21]} 17. Bf2 {[%clk 0:01:32]}  Bb7 {[%clk 0:01:17]} 18. exf5 {[%clk 0:00:43]}  exf5 {[%clk 0:01:06]} 19. Ne6 {[%clk 0:00:42]}  Rxe6 {[%clk 0:00:45]} 20. Rxe6 {[%clk 0:00:39]}  Rf8 {[%clk 0:00:35]} 21. Qxd8 {[%clk 0:00:38]}  Rxd8 {[%clk 0:00:36]} 22. Re8+ {[%clk 0:00:31]}  Rxe8 {[%clk 0:00:35]} 23. Rxe8+ {[%clk 0:00:32]}  Kf7 {[%clk 0:00:36]} 24. Rb8 {[%clk 0:00:27]}  Bc6 {[%clk 0:00:37]} 25. Rb6 {[%clk 0:00:26]}  Be8 {[%clk 0:00:35]} 26. Rxd6 {[%clk 0:00:22]}  b4 {[%clk 0:00:31]} 27. Nd1 {[%clk 0:00:21]}  Bf8 {[%clk 0:00:26]} 28. Rxa6 {[%clk 0:00:20]}  Ng4 {[%clk 0:00:26]} 29. h3 {[%clk 0:00:16]}  Nxf2 {[%clk 0:00:26]} 30. Kxf2 {[%clk 0:00:17]}  Bg7 {[%clk 0:00:20]} 31. Ra7+ {[%clk 0:00:15]}  Kf8 {[%clk 0:00:20]} 32. Ke2 {[%clk 0:00:13]}  Bf6 {[%clk 0:00:16]} 33. a4 {[%clk 0:00:11]}  bxa3 {[%clk 0:00:13]} 34. bxa3 {[%clk 0:00:10]}  g5 {[%clk 0:00:13]} 35. fxg5 {[%clk 0:00:10]}  Bh5+ {[%clk 0:00:14]} 36. g4 {[%clk 0:00:08]}  fxg4 {[%clk 0:00:13]} 37. gxf6 {[%clk 0:00:08]}  gxh3+ {[%clk 0:00:13]} 38. Kf2 {[%clk 0:00:08]}  Bxd1 {[%clk 0:00:13]} 39. Rxh7 {[%clk 0:00:07]}  Bg4 {[%clk 0:00:11]} 40. Kg3 {[%clk 0:00:08]}  Bf5 {[%clk 0:00:11]} 41. Rxh3 {[%clk 0:00:08]}  c4 {[%clk 0:00:05]} 42. dxc4 {[%clk 0:00:07]}  Bxc2 {[%clk 0:00:04]} 43. Rh6 {[%clk 0:00:07]}  Kf7 {[%clk 0:00:02]} 44. Kf4 {[%clk 0:00:07]}  Bb3 {[%clk 0:00:02]} 45. c5 {[%clk 0:00:07]}  Ba4 {[%clk 0:00:03]} 46. Ke5 {[%clk 0:00:07]}  Bc6 {[%clk 0:00:02]} 47. Kd6 {[%clk 0:00:07]}  Be4 {[%clk 0:00:01]} 48. c6 {[%clk 0:00:07]}  Bf5 {[%clk 0:00:01]} 49. a4 {[%clk 0:00:07]}  Bc8 {[%clk 0:00:02]} 50. a5 {[%clk 0:00:07]}  Ba6 {[%clk 0:00:02]} 51. c7 {[%clk 0:00:07]}  Kf8 {[%clk 0:00:02]} 52. c8=Q+ {[%clk 0:00:05]}  Kf7 {[%clk 0:00:00]} 53. Qd7+ {[%clk 0:00:04]} 1-0

[Event "January 2 Early 2024"]
[Site "https://www.chess.com"]
[Date "2024.01.02"]
[Round "2"]
[White "Khamdamova, Afruza"]
[Black "Andersson, Bjorn 1960"]
[Result "0-1"]
[Board "166"]
[TimeControl "180+1"]
[WhiteFideId "14210444"]
[BlackFideId "1700545"]
[WhiteElo "2570"]
[BlackElo "2333"]
[WhiteTeam "UZB"]
[BlackTeam "SWE"]
[WhiteClock "0:00:00"]
[BlackClock "0:00:41"]

1. e4 {[%clk 0:03:00]}  e6 {[%clk 0:02:51]} 2. d4 {[%clk 0:03:00]}  d5 {[%clk 0:02:52]} 3. Nd2 {[%clk 0:02:59]}  Be7 {[%clk 0:02:52]} 4. Ngf3 {[%clk 0:02:58]}  Nf6 {[%clk 0:02:52]} 5. e5 {[%clk 0:02:58]}  Nfd7 {[%clk 0:02:52]} 6. Bd3 {[%clk 0:02:58]}  c5 {[%clk 0:02:52]} 7. c3 {[%clk 0:02:58]}  Nc6 {[%clk 0:02:53]} 8. O-O {[%clk 0:02:57]}  g5 {[%clk 0:02:53]} 9. dxc5 {[%clk 0:02:57]}  Ndxe5 {[%clk 0:02:53]} 10. Nxe5 {[%clk 0:02:56]}  Nxe5 {[%clk 0:02:54]} 11. Bb5+ {[%clk 0:02:51]}  Bd7 {[%clk 0:02:51]} 12. Bxd7+ {[%clk 0:02:19]}  Qxd7 {[%clk 0:02:52]} 13. Nb3 {[%clk 0:02:19]}  Ng6 {[%clk 0:02:43]} 14. Be3 {[%clk 0:02:05]}  e5 {[%clk 0:02:37]} 15. Qc2 {[%clk 0:01:37]}  O-O {[%clk 0:02:35]} 16. Rad1 {[%clk 0:01:36]}  Qe6 {[%clk 0:02:35]} 17. Rfe1 {[%clk 0:01:31]}  Rad8 {[%clk 0:02:31]} 18. Bc1 {[%clk 0:01:26]}  f6 {[%clk 0:02:27]} 19. Nd4 {[%clk 0:01:25]}  Qd7 {[%clk 0:02:08]} 20. Nf5 {[%clk 0:01:05]}  Bxc5 {[%clk 0:02:01]} 21. b4 {[%clk 0:00:45]}  Bb6 {[%clk 0:01:56]} 22. c4 {[%clk 0:00:46]}  Rc8 {[%clk 0:01:32]} 23. c5 {[%clk 0:00:36]}  Bc7 {[%clk 0:01:28]} 24. Qb3 {[%clk 0:00:36]}  Rcd8 {[%clk 0:01:27]} 25. Ne3 {[%clk 0:00:34]}  Ne7 {[%clk 0:01:23]} 26. Rd2 {[%clk 0:00:31]}  Kh8 {[%clk 0:01:19]} 27. Red1 {[%clk 0:00:31]}  d4 {[%clk 0:01:19]} 28. Nc4 {[%clk 0:00:28]}  Qe6 {[%clk 0:01:17]} 29. Rd3 {[%clk 0:00:24]}  b6 {[%clk 0:01:09]} 30. cxb6 {[%clk 0:00:13]}  axb6 {[%clk 0:01:10]} 31. Qc2 {[%clk 0:00:12]}  Rc8 {[%clk 0:01:07]} 32. Rh3 {[%clk 0:00:09]}  Qf5 {[%clk 0:00:55]} 33. Qe2 {[%clk 0:00:09]}  Qg6 {[%clk 0:00:50]} 34. b5 {[%clk 0:00:06]}  Nd5 {[%clk 0:00:48]} 35. a4 {[%clk 0:00:04]}  Nc3 {[%clk 0:00:48]} 36. Rxc3 {[%clk 0:00:02]}  dxc3 {[%clk 0:00:49]} 37. Ba3 {[%clk 0:00:01]}  Rfd8 {[%clk 0:00:47]} 38. Rc1 {[%clk 0:00:01]}  c2 {[%clk 0:00:46]} 39. Rxc2 {[%clk 0:00:00]}  Qd3 {[%clk 0:00:41]} 0-1

[Event "January 2 Early 2024"]
[Site "https://www.chess.com"]
[Date "2024.01.02"]
[Round "2"]
[White "Lima, Artur Tin Lun Dai"]
[Black "Van Dael, Siem"]
[Result "1-0"]
[Board "167"]
[TimeControl "180+1"]
[WhiteFideId "22773150"]
[BlackFideId "1049771"]
[WhiteElo "2333"]
[BlackElo "2566"]
[WhiteTeam "BRA"]
[BlackTeam "NED"]
[WhiteClock "0:00:14"]
[BlackClock "0:00:00"]

1. d4 {[%clk 0:03:00]}  Nf6 {[%clk 0:02:59]} 2. c4 {[%clk 0:03:00]}  g6 {[%clk 0:02:59]} 3. Nf3 {[%clk 0:02:57]}  Bg7 {[%clk 0:02:58]} 4. Nc3 {[%clk 0:02:57]}  d6 {[%clk 0:02:54]} 5. g3 {[%clk 0:02:57]}  O-O {[%clk 0:02:55]} 6. Bg2 {[%clk 0:02:57]}  c5 {[%clk 0:02:54]} 7. O-O {[%clk 0:02:54]}  Nc6 {[%clk 0:02:42]} 8. dxc5 {[%clk 0:02:48]}  dxc5 {[%clk 0:02:43]} 9. Bf4 {[%clk 0:02:48]}  Nh5 {[%clk 0:02:35]} 10. Be3 {[%clk 0:02:46]}  b6 {[%clk 0:02:16]} 11. Qa4 {[%clk 0:02:41]}  Bb7 {[%clk 0:02:09]} 12. Rad1 {[%clk 0:02:41]}  Qc8 {[%clk 0:01:53]} 13. h4 {[%clk 0:02:30]}  Nd4 {[%clk 0:01:37]} 14. Nxd4 {[%clk 0:02:19]}  Bxg2 {[%clk 0:01:34]} 15. Kxg2 {[%clk 0:02:19]}  cxd4 {[%clk 0:01:29]} 16. Bxd4 {[%clk 0:02:18]}  e5 {[%clk 0:01:28]} 17. Nd5 {[%clk 0:02:09]}  Qg4 {[%clk 0:01:14]} 18. Bc3 {[%clk 0:02:03]}  f5 {[%clk 0:01:10]} 19. Qc2 {[%clk 0:00:59]}  Rad8 {[%clk 0:00:54]} 20. b3 {[%clk 0:00:58]}  Rxd5 {[%clk 0:00:46]} 21. Rxd5 {[%clk 0:00:53]}  Nf4+ {[%clk 0:00:45]} 22. Kg1 {[%clk 0:00:49]}  Nxd5 {[%clk 0:00:12]} 23. cxd5 {[%clk 0:00:50]}  f4 {[%clk 0:00:13]} 24. Qe4 {[%clk 0:00:47]}  h5 {[%clk 0:00:12]} 25. d6 {[%clk 0:00:43]}  f3 {[%clk 0:00:11]} 26. exf3 {[%clk 0:00:36]}  Qxf3 {[%clk 0:00:08]} 27. Qc4+ {[%clk 0:00:19]}  Kh7 {[%clk 0:00:08]} 28. d7 {[%clk 0:00:16]}  Bf6 {[%clk 0:00:02]} 29. Bb4 {[%clk 0:00:14]}  Rd8 {[%clk 0:00:00]} 30. Qf7+ {[%clk 0:00:14]} 1-0

[Event "January 2 Early 2024"]
[Site "https://www.chess.com"]
[Date "2024.01.02"]
[Round "2"]
[White "Larina, Maria"]
[Black "Womacka, Mathias"]
[Result "0-1"]
[Board "169"]
[TimeControl "180+1"]
[WhiteFideId "24113182"]
[BlackFideId "4611390"]
[WhiteElo "2331"]
[BlackElo "2545"]
[WhiteTeam "FID"]
[BlackTeam "GER"]
[WhiteClock "0:00:00"]
[BlackClock "0:00:33"]

1. e4 {[%clk 0:03:00]}  c5 {[%clk 0:02:58]} 2. Nc3 {[%clk 0:03:00]}  Nc6 {[%clk 0:02:57]} 3. g3 {[%clk 0:02:59]}  g6 {[%clk 0:02:53]} 4. Bg2 {[%clk 0:02:59]}  Bg7 {[%clk 0:02:53]} 5. d3 {[%clk 0:03:00]}  d6 {[%clk 0:02:52]} 6. h3 {[%clk 0:02:58]}  e5 {[%clk 0:02:46]} 7. Nf3 {[%clk 0:02:55]}  Nge7 {[%clk 0:02:46]} 8. O-O {[%clk 0:02:55]}  O-O {[%clk 0:02:47]} 9. Nh4 {[%clk 0:02:53]}  Be6 {[%clk 0:02:42]} 10. f4 {[%clk 0:02:52]}  Qd7 {[%clk 0:02:38]} 11. Kh2 {[%clk 0:02:36]}  exf4 {[%clk 0:02:23]} 12. gxf4 {[%clk 0:02:29]}  d5 {[%clk 0:02:14]} 13. e5 {[%clk 0:02:18]}  f6 {[%clk 0:02:08]} 14. exf6 {[%clk 0:02:01]}  Bxf6 {[%clk 0:02:09]} 15. Nf3 {[%clk 0:02:02]}  Nf5 {[%clk 0:02:07]} 16. Qe1 {[%clk 0:01:30]}  Rae8 {[%clk 0:02:05]} 17. Qf2 {[%clk 0:01:29]}  Ncd4 {[%clk 0:01:46]} 18. Nxd4 {[%clk 0:01:27]}  Bxd4 {[%clk 0:01:43]} 19. Qf3 {[%clk 0:01:21]}  Nh4 {[%clk 0:01:40]} 20. Qg3 {[%clk 0:01:17]}  Nxg2 {[%clk 0:01:38]} 21. Qxg2 {[%clk 0:01:18]}  Bg7 {[%clk 0:00:59]} 22. Bd2 {[%clk 0:00:57]}  Bxc3 {[%clk 0:00:43]} 23. bxc3 {[%clk 0:00:53]}  Bxh3 {[%clk 0:00:39]} 24. Qxh3 {[%clk 0:00:22]}  Re2+ {[%clk 0:00:39]} 25. Kg3 {[%clk 0:00:20]}  Qxh3+ {[%clk 0:00:39]} 26. Kxh3 {[%clk 0:00:20]}  Rxd2 {[%clk 0:00:39]} 27. Rac1 {[%clk 0:00:05]}  Kg7 {[%clk 0:00:39]} 28. Kg4 {[%clk 0:00:04]}  Re8 {[%clk 0:00:35]} 29. Rh1 {[%clk 0:00:00]}  Ree2 {[%clk 0:00:33]} 0-1

[Event "January 2 Early 2024"]
[Site "https://www.chess.com"]
[Date "2024.01.02"]
[Round "2"]
[White "Rodchenkov, Sergey D."]
[Black "Lira, Suan Bruno Fernandes"]
[Result "0-1"]
[Board "170"]
[TimeControl "180+1"]
[WhiteFideId "4168712"]
[BlackFideId "22794620"]
[WhiteElo "2540"]
[BlackElo "2331"]
[WhiteTeam "RUS"]
[BlackTeam "BRA"]
[WhiteClock "0:02:53"]
[BlackClock "0:01:31"]

1. e4 {[%clk 0:03:00]}  c6 {[%clk 0:03:00]} 2. d4 {[%clk 0:03:01]}  d5 {[%clk 0:03:00]} 3. exd5 {[%clk 0:03:01]}  cxd5 {[%clk 0:03:01]} 4. Bd3 {[%clk 0:03:02]}  Nc6 {[%clk 0:03:02]} 5. c3 {[%clk 0:03:03]}  Nf6 {[%clk 0:03:03]} 6. h3 {[%clk 0:03:03]}  e5 {[%clk 0:03:03]} 7. dxe5 {[%clk 0:03:04]}  Nxe5 {[%clk 0:03:03]} 8. Nf3 {[%clk 0:03:05]}  Nxd3+ {[%clk 0:03:02]} 9. Qxd3 {[%clk 0:03:06]}  h6 {[%clk 0:03:01]} 10. O-O {[%clk 0:03:06]}  Be7 {[%clk 0:02:58]} 11. Rd1 {[%clk 0:03:06]}  O-O {[%clk 0:02:58]} 12. Be3 {[%clk 0:03:07]}  Be6 {[%clk 0:02:58]} 13. Nbd2 {[%clk 0:03:07]}  a6 {[%clk 0:02:51]} 14. Nd4 {[%clk 0:03:06]}  Qd7 {[%clk 0:02:37]} 15. N2f3 {[%clk 0:03:05]}  Ne4 {[%clk 0:02:27]} 16. Ne5 {[%clk 0:03:05]}  Qc7 {[%clk 0:02:26]} 17. f4 {[%clk 0:03:06]}  Bd6 {[%clk 0:02:10]} 18. Ndf3 {[%clk 0:03:03]}  f6 {[%clk 0:02:06]} 19. f5 {[%clk 0:03:01]}  Bxf5 {[%clk 0:01:51]} 20. Qxd5+ {[%clk 0:03:01]}  Kh8 {[%clk 0:01:52]} 21. Nc4 {[%clk 0:03:02]}  Be5 {[%clk 0:01:37]} 22. Ncxe5 {[%clk 0:03:01]}  fxe5 {[%clk 0:01:38]} 23. Nxe5 {[%clk 0:03:01]}  Rad8 {[%clk 0:01:34]} 24. Qb3 {[%clk 0:02:53]}  Qxe5 {[%clk 0:01:31]} 0-1

[Event "January 2 Early 2024"]
[Site "https://www.chess.com"]
[Date "2024.01.02"]
[Round "2"]
[White "Jeran, Bostjan"]
[Black "Dushyant Sharma"]
[Result "1-0"]
[Board "171"]
[TimeControl "180+1"]
[WhiteFideId "14604612"]
[BlackFideId "25065130"]
[WhiteElo "2330"]
[BlackElo "2535"]
[WhiteTeam "SLO"]
[BlackTeam "IND"]
[WhiteClock "0:00:19"]
[BlackClock "0:00:06"]

1. g3 {[%clk 0:02:54]}  d5 {[%clk 0:02:50]} 2. Bg2 {[%clk 0:02:52]}  e6 {[%clk 0:02:50]} 3. Nf3 {[%clk 0:02:52]}  Nf6 {[%clk 0:02:50]} 4. O-O {[%clk 0:02:52]}  Be7 {[%clk 0:02:51]} 5. c4 {[%clk 0:02:53]}  O-O {[%clk 0:02:51]} 6. b3 {[%clk 0:02:53]}  c5 {[%clk 0:02:51]} 7. e3 {[%clk 0:02:52]}  Nc6 {[%clk 0:02:51]} 8. Bb2 {[%clk 0:02:52]}  b6 {[%clk 0:02:50]} 9. d3 {[%clk 0:02:51]}  Bb7 {[%clk 0:02:50]} 10. Qe2 {[%clk 0:02:49]}  Rc8 {[%clk 0:02:50]} 11. a3 {[%clk 0:02:47]}  a6 {[%clk 0:02:50]} 12. Nbd2 {[%clk 0:02:47]}  b5 {[%clk 0:02:50]} 13. Rfc1 {[%clk 0:02:44]}  Qb6 {[%clk 0:02:35]} 14. Rab1 {[%clk 0:02:33]}  Rfd8 {[%clk 0:02:35]} 15. h3 {[%clk 0:02:25]}  bxc4 {[%clk 0:02:35]} 16. bxc4 {[%clk 0:02:23]}  Qa7 {[%clk 0:02:35]} 17. Bc3 {[%clk 0:02:17]}  Ba8 {[%clk 0:02:33]} 18. Rb3 {[%clk 0:02:14]}  d4 {[%clk 0:02:28]} 19. exd4 {[%clk 0:02:13]}  cxd4 {[%clk 0:02:27]} 20. Bb4 {[%clk 0:02:12]}  Nxb4 {[%clk 0:02:24]} 21. axb4 {[%clk 0:02:12]}  Rb8 {[%clk 0:02:20]} 22. Rcb1 {[%clk 0:02:10]}  h6 {[%clk 0:02:13]} 23. Ne5 {[%clk 0:02:03]}  Bxg2 {[%clk 0:02:13]} 24. Kxg2 {[%clk 0:02:03]}  Qc7 {[%clk 0:02:09]} 25. b5 {[%clk 0:01:56]}  axb5 {[%clk 0:02:07]} 26. cxb5 {[%clk 0:01:55]}  Rb7 {[%clk 0:02:01]} 27. b6 {[%clk 0:01:46]}  Qc8 {[%clk 0:01:51]} 28. Ndc4 {[%clk 0:01:41]}  Nd5 {[%clk 0:01:50]} 29. R1b2 {[%clk 0:01:29]}  f6 {[%clk 0:01:36]} 30. Nf3 {[%clk 0:01:28]}  e5 {[%clk 0:01:35]} 31. Nh4 {[%clk 0:01:26]}  Nc3 {[%clk 0:01:22]} 32. Qf3 {[%clk 0:01:25]}  e4 {[%clk 0:01:20]} 33. Qf5 {[%clk 0:01:18]}  Rdd7 {[%clk 0:00:33]} 34. Ng6 {[%clk 0:01:03]}  Qe8 {[%clk 0:00:22]} 35. Na5 {[%clk 0:00:57]}  Rb8 {[%clk 0:00:17]} 36. Nc6 {[%clk 0:00:52]}  Rbb7 {[%clk 0:00:10]} 37. Ncxe7+ {[%clk 0:00:49]}  Rxe7 {[%clk 0:00:10]} 38. Nxe7+ {[%clk 0:00:50]}  Rxe7 {[%clk 0:00:11]} 39. b7 {[%clk 0:00:46]}  Qb8 {[%clk 0:00:10]} 40. dxe4 {[%clk 0:00:42]}  Nxe4 {[%clk 0:00:09]} 41. Qc8+ {[%clk 0:00:42]}  Re8 {[%clk 0:00:09]} 42. Qxb8 {[%clk 0:00:42]}  Rxb8 {[%clk 0:00:10]} 43. Rc2 {[%clk 0:00:40]}  Nd6 {[%clk 0:00:09]} 44. Rc7 {[%clk 0:00:37]}  d3 {[%clk 0:00:10]} 45. Rd7 {[%clk 0:00:32]}  Ne4 {[%clk 0:00:03]} 46. Rb4 {[%clk 0:00:20]}  Nc5 {[%clk 0:00:03]} 47. Rc7 {[%clk 0:00:18]}  Na6 {[%clk 0:00:04]} 48. Rc8+ {[%clk 0:00:17]}  Kf7 {[%clk 0:00:04]} 49. Rxb8 {[%clk 0:00:17]}  Nxb8 {[%clk 0:00:05]} 50. Rd4 {[%clk 0:00:18]}  Ke6 {[%clk 0:00:04]} 51. Rxd3 {[%clk 0:00:18]}  g5 {[%clk 0:00:04]} 52. Rd8 {[%clk 0:00:19]}  Nc6 {[%clk 0:00:03]} 53. b8=Q {[%clk 0:00:19]}  Nxb8 {[%clk 0:00:04]} 54. Rxb8 {[%clk 0:00:20]}  Kf5 {[%clk 0:00:05]} 55. Rh8 {[%clk 0:00:20]}  Kg6 {[%clk 0:00:06]} 56. Ra8 {[%clk 0:00:20]}  Kh5 {[%clk 0:00:06]} 57. Ra4 {[%clk 0:00:21]}  f5 {[%clk 0:00:06]} 58. g4+ {[%clk 0:00:21]}  fxg4 {[%clk 0:00:04]} 59. hxg4+ {[%clk 0:00:22]}  Kh4 {[%clk 0:00:04]} 60. Kf3 {[%clk 0:00:22]}  h5 {[%clk 0:00:05]} 61. gxh5+ {[%clk 0:00:21]}  Kxh5 {[%clk 0:00:05]} 62. Kg3 {[%clk 0:00:19]}  Kh6 {[%clk 0:00:06]} 63. Kg4 {[%clk 0:00:19]} 1-0

[Event "January 2 Early 2024"]
[Site "https://www.chess.com"]
[Date "2024.01.02"]
[Round "2"]
[White "Tuleyeva-Aketayeva, Dana"]
[Black "Novikov, Evgenij"]
[Result "0-1"]
[Board "174"]
[TimeControl "180+1"]
[WhiteFideId "13701932"]
[BlackFideId "4125380"]
[WhiteElo "2324"]
[BlackElo "2530"]
[WhiteTeam "KAZ"]
[BlackTeam "RUS"]
[WhiteClock "0:00:04"]
[BlackClock "0:00:05"]

1. d4 {[%clk 0:03:00]}  Nf6 {[%clk 0:02:57]} 2. Nf3 {[%clk 0:03:01]}  b5 {[%clk 0:02:55]} 3. g3 {[%clk 0:03:01]}  Bb7 {[%clk 0:02:55]} 4. Bg2 {[%clk 0:03:02]}  e6 {[%clk 0:02:53]} 5. O-O {[%clk 0:03:02]}  Be7 {[%clk 0:02:54]} 6. a4 {[%clk 0:03:01]}  b4 {[%clk 0:02:51]} 7. c4 {[%clk 0:03:01]}  O-O {[%clk 0:02:49]} 8. a5 {[%clk 0:02:59]}  a6 {[%clk 0:02:43]} 9. Nbd2 {[%clk 0:02:49]}  d6 {[%clk 0:02:28]} 10. Nb3 {[%clk 0:02:49]}  Nbd7 {[%clk 0:02:25]} 11. Bd2 {[%clk 0:02:46]}  Rb8 {[%clk 0:02:23]} 12. Re1 {[%clk 0:02:34]}  Ne4 {[%clk 0:02:13]} 13. Qc2 {[%clk 0:02:29]}  Nxd2 {[%clk 0:02:09]} 14. Qxd2 {[%clk 0:02:14]}  Nf6 {[%clk 0:02:04]} 15. Nh4 {[%clk 0:02:07]}  Ne4 {[%clk 0:01:48]} 16. Qc2 {[%clk 0:02:04]}  f5 {[%clk 0:01:39]} 17. Nf3 {[%clk 0:02:00]}  Bf6 {[%clk 0:01:24]} 18. Nfd2 {[%clk 0:01:55]}  Nxd2 {[%clk 0:01:18]} 19. Qxd2 {[%clk 0:01:47]}  Bxg2 {[%clk 0:01:15]} 20. Kxg2 {[%clk 0:01:48]}  Qd7 {[%clk 0:01:10]} 21. Kg1 {[%clk 0:01:47]}  e5 {[%clk 0:01:00]} 22. e3 {[%clk 0:01:21]}  Qc6 {[%clk 0:00:54]} 23. Qc2 {[%clk 0:01:15]}  Qf3 {[%clk 0:00:45]} 24. Qe2 {[%clk 0:01:12]}  Qe4 {[%clk 0:00:35]} 25. d5 {[%clk 0:01:06]}  f4 {[%clk 0:00:26]} 26. exf4 {[%clk 0:01:01]}  Qg6 {[%clk 0:00:17]} 27. Qe4 {[%clk 0:00:53]}  Qxe4 {[%clk 0:00:16]} 28. Rxe4 {[%clk 0:00:53]}  exf4 {[%clk 0:00:17]} 29. Rxf4 {[%clk 0:00:46]}  Bxb2 {[%clk 0:00:15]} 30. Rxf8+ {[%clk 0:00:45]}  Kxf8 {[%clk 0:00:14]} 31. Re1 {[%clk 0:00:44]}  Bc3 {[%clk 0:00:11]} 32. Re4 {[%clk 0:00:43]}  Re8 {[%clk 0:00:10]} 33. Rxe8+ {[%clk 0:00:33]}  Kxe8 {[%clk 0:00:11]} 34. Kf1 {[%clk 0:00:34]}  Kf7 {[%clk 0:00:09]} 35. Ke2 {[%clk 0:00:33]}  Kf6 {[%clk 0:00:09]} 36. f4 {[%clk 0:00:31]}  Kf5 {[%clk 0:00:10]} 37. Kf3 {[%clk 0:00:31]}  h5 {[%clk 0:00:10]} 38. h3 {[%clk 0:00:31]}  g6 {[%clk 0:00:09]} 39. g4+ {[%clk 0:00:30]}  Kf6 {[%clk 0:00:09]} 40. Ke4 {[%clk 0:00:28]}  hxg4 {[%clk 0:00:04]} 41. hxg4 {[%clk 0:00:28]}  Kf7 {[%clk 0:00:04]} 42. c5 {[%clk 0:00:20]}  Kf6 {[%clk 0:00:02]} 43. cxd6 {[%clk 0:00:19]}  cxd6 {[%clk 0:00:03]} 44. Kf3 {[%clk 0:00:10]}  Kf7 {[%clk 0:00:03]} 45. Ke3 {[%clk 0:00:09]}  Kf6 {[%clk 0:00:03]} 46. Ke4 {[%clk 0:00:08]}  Ke7 {[%clk 0:00:03]} 47. f5 {[%clk 0:00:08]}  Kf6 {[%clk 0:00:02]} 48. fxg6 {[%clk 0:00:03]}  Kxg6 {[%clk 0:00:02]} 49. Nd4 {[%clk 0:00:03]}  Bxd4 {[%clk 0:00:01]} 50. Kxd4 {[%clk 0:00:03]}  Kg5 {[%clk 0:00:02]} 51. Kc4 {[%clk 0:00:03]}  Kxg4 {[%clk 0:00:02]} 52. Kxb4 {[%clk 0:00:03]}  Kf4 {[%clk 0:00:02]} 53. Kb3 {[%clk 0:00:03]}  Ke4 {[%clk 0:00:03]} 54. Kc4 {[%clk 0:00:03]}  Ke5 {[%clk 0:00:03]} 55. Kd3 {[%clk 0:00:03]}  Kxd5 {[%clk 0:00:03]} 56. Kc3 {[%clk 0:00:04]}  Kc5 {[%clk 0:00:03]} 57. Kd3 {[%clk 0:00:03]}  Kb5 {[%clk 0:00:04]} 58. Kd4 {[%clk 0:00:04]}  Kxa5 {[%clk 0:00:04]} 59. Kc4 {[%clk 0:00:05]}  Ka4 {[%clk 0:00:04]} 60. Kd5 {[%clk 0:00:05]}  Kb4 {[%clk 0:00:04]} 61. Kxd6 {[%clk 0:00:04]}  a5 {[%clk 0:00:05]} 0-1